[Event "GER-ch Youth-U14 2022"]
[Site "Willingen"]
[Date "2022.06.09"]
[Round "7.14"]
[White "Weyerer, Noah"]
[Black "Kieselbach, Jannik"]
[Result "1/2-1/2"]
[ECO "D35"]
[WhiteElo "1555"]
[BlackElo "1631"]
[Annotator "NA RC COMBH"]
[PlyCount "148"]
[EventDate "2022.06.05"]
[EventType "swiss"]
[EventRounds "9"]
[EventCountry "GER"]
[SourceTitle "playchess.com"]
[Source "ChessBase"]
[SourceQuality "1"]
[TimeControl "40/4500+30:900+30"]

1. c4 {[%emt 0:00:00]} Nf6 {[%emt 0:00:00]} 2. Nc3 {[%emt 0:00:00]} e6 {[%emt 0:00:00]} 3. d4 {[%emt 0:00:00]} d5 {[%emt 0:00:00]} 4. cxd5 {[%emt 0:00:00]} exd5 {[%emt 0:00:00]} 5. Bg5 {[%emt 0:00:00]} c6 {[%emt 0:00:00]} 6. e3 {[%emt 0:00:00]} Bf5 {[%emt 0:00:00]} 7. Qf3 {[%emt 0:00:00]} Bg6 {[%emt 0:00:00]} 8. Bxf6 {[%emt 0:00:00]} Qxf6 {[%emt 0:00:00]} 9. Qxf6 {[%emt 0:00:00]} gxf6 {[%emt 0:00:00]} 10. Nf3 {[%emt 0:00:00]} Nd7 {[%emt 0:00:00]} 11. Nh4 {[%emt 0:00:00]} Be7 {[%emt 0:00:00]} 12. f4 {[%emt 0:00:00]} f5 {[%emt 0:00:00]} 13. Nf3 {[%emt 0:00:00]} Nf6 {[%emt 0:00:00]} 14. a3 {[%emt 0:00:20]} Ne4 {[%emt 0:00:00]} 15. Rc1 {[%emt 0:03:37]} Bd6 {[%emt 0:00:06]} 16. Na4 {[%emt 0:07:38]} O-O {[%emt 0:09:36]} 17. Nc5 {[%emt 0:05:19]} b6 {[%emt 0:19:31]} 18. Nb7 {[%emt 0:16:07]} Rac8 {[%emt 0:02:11]} 19. Nxd6 {[%emt 0:01:29]} Nxd6 {[%emt 0:00:46]} 20. b4 {[%emt 0:11:21]} f6 {[%emt 0:03:46]} 21. Bd3 {[%emt 0:03:11]} Rfe8 {[%emt 0:00:40]} 22. Kf2 {[%emt 0:04:23]} Ne4+ {[%emt 0:04:42]} 23. Bxe4 {[%emt 0:00:49]} fxe4 {[%emt 0:00:13]} 24. Nd2 {[%emt 0:00:29]} Rc7 {[%emt 0:01:57]} 25. Rc2 {[%emt 0:00:26]} Rec8 {[%emt 0:02:18]} 26. Rhc1 {[%emt 0:00:10]} Kf8 {[%emt 0:01:08]} 27. Nb3 {[%emt 0:06:15]} Ke7 {[%emt 0:00:32]} 28. g4 {[%emt 0:02:48]} Kd6 {[%emt 0:01:26]} 29. h4 {[%emt 0:01:20]} Bf7 {[%emt 0:03:36]} 30. g5 {[%emt 0:02:20]} Be6 {[%emt 0:21:30]} 31. gxf6 {[%emt 0:05:16]} Rf8 {[%emt 0:02:57]} 32. b5 {[%emt 0:12:28]} Bd7 {[%emt 0:02:17]} 33. bxc6 {[%emt 0:00:07]} Rxc6 {[%emt 0:00:26]} 34. Rxc6+ {[%emt 0:00:42]} Bxc6 {[%emt 0:00:08]} 35. Rg1 {[%emt 0:02:18]} Rxf6 {[%emt 0:01:46]} 36. Rg7 {[%emt 0:01:08]} Rh6 {[%emt 0:00:23]} 37. Kg3 {[%emt 0:00:38]} Rg6+ {[%emt 0:01:11]} 38. Rxg6+ {[%emt 0:00:07]} hxg6 {[%emt 0:00:19]} 39. Kg4 {[%emt 0:02:40]} Ke7 {[%emt 0:04:04]} 40. Kg5 {[%emt 0:00:38]} Kf7 {[%emt 0:00:17]} 41. f5 {[%emt 0:15:35]} gxf5 {[%emt 0:19:13]} 42. Kxf5 {[%emt 0:00:18]} a5 {[%emt 0:00:00]} 43. Ke5 {[%emt 0:00:00]} Kg6 {[%emt 0:00:00]} 44. Kd6 {[%emt 0:00:00]} Ba8 {[%emt 0:00:00]} 45. Kc7 {[%emt 0:00:00]} Kh5 {[%emt 0:00:00]} 46. Kxb6 {[%emt 0:00:00]} Kxh4 {[%emt 0:01:31]} 47. Kxa5 {[%emt 0:00:00]} Kg3 {[%emt 0:00:43]} 48. Na1 {[%emt 0:00:00]} Kf3 {[%emt 0:00:31]} 49. Nc2 {[%emt 0:00:00]} Ke2 {[%emt 0:00:22]} 50. Kb4 {[%emt 0:01:13]} Kd2 {[%emt 0:00:34]} 51. Kb3 {[%emt 0:00:10]} Bb7 {[%emt 0:01:04]} 52. Kb2 {[%emt 0:02:57]} Ba6 {[%emt 0:00:58]} 53. a4 {[%emt 0:00:52]} Bd3 {[%emt 0:02:50]} 54. Nb4 {[%emt 0:00:16]} Kxe3 {[%emt 0:00:36]} 55. Nxd5+ {[%emt 0:00:05]} Kxd4 {[%emt 0:00:14]} 56. Nc3 {[%emt 0:02:19]} e3 {[%emt 0:00:26]} 57. a5 {[%emt 0:00:21]} Bc4 {[%emt 0:01:39]} 58. Kc2 {[%emt 0:00:27]} Bd3+ {[%emt 0:00:19]} 59. Kb2 {[%emt 0:00:05]} Be4 {[%emt 0:00:34]} 60. Ne2+ {[%emt 0:01:11]} Kd3 {[%emt 0:00:13]} 61. Nf4+ {[%emt 0:00:05]} Kd2 {[%emt 0:00:19]} 62. a6 {[%emt 0:00:41]} Ke1 {[%emt 0:00:30]} 63. a7 {[%emt 0:00:38]} Kf2 {[%emt 0:00:43]} 64. Kc1 {[%emt 0:00:39]} Ba8 {[%emt 0:00:35]} 65. Kd1 {[%emt 0:00:31]} Bf3+ {[%emt 0:00:10]} 66. Kc1 {[%emt 0:00:12]} Kf1 {[%emt 0:00:39]} 67. Kc2 {[%emt 0:00:37]} Kf2 {[%emt 0:00:31]} 68. Kc1 {[%emt 0:00:18]} Kg3 {[%emt 0:00:04]} 69. Ne2+ {[%emt 0:00:15]} Kg4 {[%emt 0:00:25]} 70. Kd1 {[%emt 0:00:27]} Ba8 {[%emt 0:00:32]} 71. Ke1 {[%emt 0:00:09]} Kf3 {[%emt 0:00:33]} 72. Nc3 {[%emt 0:00:37]} Bb7 {[%emt 0:00:14]} 73. Nd1 {[%emt 0:00:20]} Ke4 {[%emt 0:00:21]} 74. Nxe3 {[%emt 0:00:12]} Kxe3 {[%emt 0:00:10]} 1/2-1/2

[Event "GER-ch Youth-U14 2022"]
[Site "Willingen"]
[Date "2022.06.09"]
[Round "7.15"]
[White "Mueller, Maximilian"]
[Black "Deschler, Arne"]
[Result "1/2-1/2"]
[ECO "B13"]
[WhiteElo "2299"]
[BlackElo "1646"]
[Annotator "TA"]
[PlyCount "110"]
[EventDate "2022.06.05"]
[EventType "swiss"]
[EventRounds "9"]
[EventCountry "GER"]
[SourceTitle "playchess.com"]
[Source "ChessBase"]
[SourceQuality "1"]
[TimeControl "40/4500+30:900+30"]

{[%evp 11,110,30,47,9,37,31,45,0,0,10,2,0,0,0,18,6,16,13,25,0,26,9,22,14,28,25,30,36,34,35,141,0,0,-14,29,-29,25,-92,0,0,58,0,0,0,-13,0,-33,-14,-27,-13,283,-63,359,350,312,341,303,300,265,203,924,895,834,598,569,0,0,0,0,0,0,0,407,0,832,832,831,823,809,0,610,0,747,711,773,407,407,407,407,407,407,407,407,407,401,0,0,0,393,0,0]} 1. e4 {[%emt 0:00:00]} c6 {[%emt 0:00:00]} 2. d4 {[%emt 0:00:00]} d5 {[%emt 0:00:00]} 3. exd5 {[%emt 0:00:00]} cxd5 {[%emt 0:00:00]} 4. Bd3 {[%emt 0:00:00]} Nc6 {[%emt 0:00:00]} 5. c3 {[%emt 0:00:00]} Qc7 {[%emt 0:00:00]} 6. h3 {[%emt 0:00:00]} g6 {[%emt 0:00:00]} 7. Nf3 {[%emt 0:00:00] B13: Caro-Kann: Exchange Variation and Panov-Botvinnik Attack.} Bg7 {[%emt 0:00:00]} 8. O-O {[%emt 0:00:00]} Bf5 {[%emt 0:00:00]} 9. Be2 {[%emt 0:00:00] White is slightly better.} Nf6 {[%emt 0:00:00]} 10. Be3 {[%emt 0:00:00]} O-O {[%emt 0:00:00]} 11. Qc1 {[%emt 0:00:00] [#]} Rac8 $146 {[%emt 0:00:00]} ({Predecessor:} 11... Rfe8 12. Bf4 Qb6 13. Nbd2 Rac8 14. g4 Bd7 15. Nb3 Ne4 16. Qe3 a5 17. Nfd2 Nxd2 18. Qxd2 {0-1 (28) Jaenig,R (2140)-Llaneza Vega,M (2485) Bad Wiessee 2008}) 12. Bf4 {[%emt 0:00:00]} Qd7 {[%emt 0:00:00]} 13. Qd1 {[%emt 0:00:00]} a6 {[%emt 0:06:24]} 14. Nbd2 {[%emt 0:00:00]} Ne4 {[%emt 0:04:31]} 15. Nxe4 {[%emt 0:00:18]} Bxe4 {[%emt 0:00:49]} 16. Nd2 {[%emt 0:00:06]} Qf5 {[%emt 0:05:40]} 17. Bg3 {[%emt 0:00:10] And now Bg4 would win.} h5 {[%emt 0:03:08] Inhibits Bg4.} 18. Nxe4 {[%emt 0:23:05]} dxe4 {[%emt 0:01:23]} 19. Qb3 {[%emt 0:05:52]} Na5 {[%emt 0:05:18]} 20. Qb4 {[%emt 0:00:07]} e6 {[%emt 0:01:24]} (20... Bf6 $14) 21. Rfd1 {[%emt 0:03:11]} ({Better is} 21. Bd6 $1 $16) 21... Rfd8 {[%emt 0:02:41]} 22. Qb6 {[%emt 0:16:20] Strongly threatening b4.} Rd7 {[%emt 0:06:00]} 23. Rac1 {[%emt 0:18:18]} (23. d5 $142 Rxd5 24. b4) 23... Bf8 {[%emt 0:09:10]} (23... Bh6 $142) 24. c4 {[%emt 0:12:14]} (24. d5 $1 $11 Rxd5 25. b4) 24... Rc6 {[%emt 0:02:36]} (24... Be7 $17 25. d5 Bd8) 25. Qa7 $11 {[%emt 0:00:02]} Bd6 {[%emt 0:01:54] Against Qb8+} ({Black should play} 25... Rc8 $11) 26. d5 {[%emt 0:06:07]} (26. b4 $14 Bxb4 27. Qb8+ Bf8 28. Qe8) 26... exd5 {[%emt 0:07:57] White must now prevent ...Bxg3.} 27. Rxd5 {[%emt 0:00:29]} (27. Qa8+ Kg7 28. Bxd6 Rdxd6 29. cxd5 Rxc1 30. Rxc1 Rxd5 $17) 27... Qxd5 {[%emt 0:00:31]} 28. cxd5 {[%emt 0:00:04]} Rxc1+ {[%emt 0:00:04]} 29. Kh2 $1 {[%emt 0:00:25]} Bxg3+ {[%emt 0:00:13]} 30. Kxg3 {[%emt 0:00:30]} Rc2 $2 {[%emt 0:03:38][%mdl 8192]} (30... Rxd5 $11 31. Qe3 Rcc5) 31. Bxa6 $2 {[%emt 0:01:25]} ({White must play} 31. Qb8+ $1 $18 Kh7 32. Qe8) 31... Rxb2 $2 {[%emt 0:00:37][%mdl 8192]} (31... Rxd5 $15 {keeps the upper hand.} 32. Qa8+ Kh7 33. Bxb7 Nxb7 34. Qxb7 Rg5+ 35. Kh2 Rxf2 36. Qxe4 Rxb2) 32. Qb8+ $18 {[%emt 0:00:03]} Kh7 {[%emt 0:00:36]} 33. Qe8 $1 {[%emt 0:00:18][%csl LRd7,LRe4]} Rc7 {[%emt 0:01:38]} 34. d6 {[%emt 0:00:12]} Rc3+ {[%emt 0:00:08]} 35. Kh2 {[%emt 0:00:24]} bxa6 $2 {[%emt 0:01:10]} (35... Rxf2 36. d7 (36. Bb5 Rcc2 $11) 36... Nc6 37. Bxb7 Rcc2) 36. Qxf7+ {[%emt 0:00:09]} Kh6 {[%emt 0:00:17]} 37. Qf4+ {[%emt 0:02:41]} Kh7 {[%emt 0:00:14]} 38. Qe5 $2 {[%emt 0:00:49]} (38. d7 $1 $18 Nb7 39. Qf7+ Kh6 40. Qg8) 38... Rcc2 $11 {[%emt 0:02:59][%cal Oc2f2]} 39. Qxa5 {[%emt 0:01:02]} Rxf2 {[%emt 0:01:15][%mdl 4096] Endgame KQ-KRR} 40. Qc7+ {[%emt 0:00:14]} Kh6 {[%emt 0:00:50]} 41. d7 {[%emt 0:00:00]} Rxg2+ {[%emt 0:00:00]} 42. Kh1 {[%emt 0:00:00] Dancing on a razor blade.} Rge2 $2 {[%emt 0:00:00][%mdl 8192]} (42... Rgd2 $2 43. Qc1 e3 44. Qxb2 $1 (44. d8=Q Rh2+ 45. Kg1 Rhg2+ 46. Kh1 Rh2+ 47. Kg1 Rhg2+ 48. Kh1 Rh2+ $11) 44... Rxb2 45. d8=Q $18) (42... Rgf2 $11 43. Qc1+ Rbd2) 43. Qf4+ $18 {[%emt 0:03:08]} Kh7 {[%emt 0:00:00]} 44. Qf7+ {[%emt 0:00:07]} Kh6 {[%emt 0:00:00]} 45. Qf4+ {[%emt 0:02:11]} Kh7 $1 {[%emt 0:00:00]} 46. Qf7+ {[%emt 0:03:22]} Kh6 {[%emt 0:00:00] ( -> ...Re1+)} 47. Qf1 {[%emt 0:00:13] Inhibits Re1.} Red2 {[%emt 0:01:03]} 48. Qc1 {[%emt 0:03:24]} ({Stronger than} 48. Qf8+ Kh7 49. Qe7+ Kh6 50. Qf8+ Kh7 51. Qe7+ Kh6 52. Qf8+ $11) 48... e3 {[%emt 0:00:25] [#]} 49. Qxb2 $3 {[%emt 0:00:55][%mdl 512]} Rxb2 {[%emt 0:00:19]} 50. d8=Q {[%emt 0:00:06] Qh8+ would kill now. KQ-KR} e2 {[%emt 0:00:52][%cal Re2e1]} 51. Qh8+ {[%emt 0:00:05]} Kg5 {[%emt 0:00:07][%cal Re2e1] [#]} 52. Qe5+ $1 {[%emt 0:00:05]} Kh6 {[%emt 0:01:36] aiming for ...Rb1+.} (52... Kh4 $2 53. Kg1) 53. Qh8+ {[%emt 0:00:08]} Kg5 {[%emt 0:00:08][%cal Re2e1]} 54. Qe5+ {[%emt 0:00:06]} Kh6 $1 {[%emt 0:00:09] Threatens to win with ...Rb1+.} (54... Kh4 $2 55. Kg1 $18) 55. Qh8+ $2 {[%emt 0:00:05]} (55. h4 $18 {[%cal Re5h8]} Kh7 56. Qc7+ Kg8 57. Qc1) 55... Kg5 {[%emt 0:00:20] Weighted Error Value: White=1.05/Black=0.48} 1/2-1/2

[Event "GER-ch Youth-U14 2022"]
[Site "Willingen"]
[Date "2022.06.09"]
[Round "7.16"]
[White "Sauer, Tim"]
[Black "Jahnz, Laurin"]
[Result "1/2-1/2"]
[ECO "D10"]
[WhiteElo "1769"]
[BlackElo "1681"]
[Annotator "NA RC COMBH"]
[PlyCount "71"]
[EventDate "2022.06.05"]
[EventType "swiss"]
[EventRounds "9"]
[EventCountry "GER"]
[SourceTitle "playchess.com"]
[Source "ChessBase"]
[SourceQuality "1"]
[TimeControl "40/4500+30:900+30"]

1. d4 {[%emt 0:00:00]} d5 {[%emt 0:00:00]} 2. c4 {[%emt 0:00:00]} c6 {[%emt 0:00:00]} 3. cxd5 {[%emt 0:00:00]} cxd5 {[%emt 0:00:00]} 4. Nc3 {[%emt 0:00:00]} Nf6 {[%emt 0:00:00]} 5. f3 {[%emt 0:00:00]} Nc6 {[%emt 0:00:00]} 6. e4 {[%emt 0:00:00]} dxe4 {[%emt 0:00:00]} 7. d5 {[%emt 0:00:00]} Ne5 {[%emt 0:00:00]} 8. fxe4 {[%emt 0:00:00]} a6 {[%emt 0:04:49]} 9. Nf3 {[%emt 0:00:00]} Nxf3+ {[%emt 0:02:24]} 10. Qxf3 {[%emt 0:00:00]} e6 {[%emt 0:12:07]} 11. Bd3 {[%emt 0:00:00]} Be7 {[%emt 0:02:17]} 12. O-O {[%emt 0:07:15]} O-O {[%emt 0:00:42]} 13. Be3 {[%emt 0:12:11]} e5 {[%emt 0:05:35]} 14. h3 {[%emt 0:00:44]} Nd7 {[%emt 0:15:12]} 15. g4 {[%emt 0:05:03]} Bg5 {[%emt 0:02:41]} 16. Kg2 {[%emt 0:08:24]} Bxe3 {[%emt 0:08:44]} 17. Qxe3 {[%emt 0:00:08]} Qh4 {[%emt 0:00:51]} 18. Qg3 {[%emt 0:05:22]} Qxg3+ {[%emt 0:01:42]} 19. Kxg3 {[%emt 0:00:10]} Nc5 {[%emt 0:01:54]} 20. Bc2 {[%emt 0:06:59]} b6 {[%emt 0:00:13]} 21. b4 {[%emt 0:00:49]} Nb7 {[%emt 0:00:56]} 22. Na4 {[%emt 0:00:22]} Nd6 {[%emt 0:00:52]} 23. Bd3 {[%emt 0:09:30]} Rb8 {[%emt 0:01:17]} 24. Nc3 {[%emt 0:01:23]} b5 {[%emt 0:02:43]} 25. Rac1 {[%emt 0:00:44]} Bd7 {[%emt 0:01:28]} 26. Nb1 {[%emt 0:02:17]} Rfc8 {[%emt 0:01:49]} 27. Nd2 {[%emt 0:00:23]} Rxc1 {[%emt 0:00:13]} 28. Rxc1 {[%emt 0:00:04]} Rc8 {[%emt 0:00:02]} 29. Rc5 {[%emt 0:01:00]} Nb7 {[%emt 0:01:55]} 30. Rxc8+ {[%emt 0:01:16]} Bxc8 {[%emt 0:00:05]} 31. Nb3 {[%emt 0:00:07]} Kf8 {[%emt 0:02:38]} 32. Nc5 {[%emt 0:00:16]} Nd6 {[%emt 0:00:02]} 33. Kf3 {[%emt 0:04:00]} Ke7 {[%emt 0:01:09]} 34. a4 {[%emt 0:09:31]} Kf6 {[%emt 0:01:20]} 35. axb5 {[%emt 0:01:52]} axb5 {[%emt 0:00:04]} 36. Kg3 {[%emt 0:01:37]} 1/2-1/2

[Event "GER-ch Youth-U14 2022"]
[Site "Willingen"]
[Date "2022.06.09"]
[Round "7.17"]
[White "Eichhorn, Valentin"]
[Black "Braeutigam, Alexander"]
[Result "1-0"]
[ECO "D00"]
[WhiteElo "1565"]
[BlackElo "1749"]
[Annotator "NA RC COMBH"]
[PlyCount "85"]
[EventDate "2022.06.05"]
[EventType "swiss"]
[EventRounds "9"]
[EventCountry "GER"]
[SourceTitle "playchess.com"]
[Source "ChessBase"]
[SourceQuality "1"]
[TimeControl "40/4500+30:900+30"]

1. d4 {[%emt 0:00:00]} d5 {[%emt 0:00:00]} 2. Bg5 {[%emt 0:00:00]} f6 {[%emt 0:00:00]} 3. Bh4 {[%emt 0:00:00]} c5 {[%emt 0:00:00]} 4. c3 {[%emt 0:00:00]} Qb6 {[%emt 0:00:00]} 5. Qb3 {[%emt 0:00:00]} Qxb3 {[%emt 0:00:00]} 6. axb3 {[%emt 0:00:00]} h5 {[%emt 0:00:00]} 7. Bg3 {[%emt 0:00:00]} Nc6 {[%emt 0:00:00]} 8. Nf3 {[%emt 0:00:00]} Bg4 {[%emt 0:04:29]} 9. Nbd2 {[%emt 0:00:00]} cxd4 {[%emt 0:10:29]} 10. Nxd4 {[%emt 0:09:41]} e5 {[%emt 0:10:54]} 11. Nxc6 {[%emt 0:04:22]} bxc6 {[%emt 0:00:08]} 12. f3 {[%emt 0:01:26]} Bc8 {[%emt 0:01:58]} 13. Bf2 {[%emt 0:04:24]} a6 {[%emt 0:03:29]} 14. e4 {[%emt 0:02:26]} Bb7 {[%emt 0:00:21]} 15. b4 {[%emt 0:03:12]} Bd6 {[%emt 0:03:58]} 16. Nb3 {[%emt 0:01:54]} Kd7 {[%emt 0:00:36]} 17. Nc5+ {[%emt 0:02:16]} Bxc5 {[%emt 0:00:59]} 18. Bxc5 {[%emt 0:00:24]} Ne7 {[%emt 0:02:05]} 19. Bd3 {[%emt 0:02:52]} Ke6 {[%emt 0:10:21]} 20. O-O {[%emt 0:09:01]} Nc8 {[%emt 0:00:44]} 21. Ra5 {[%emt 0:06:26]} Nd6 {[%emt 0:02:00]} 22. Bxd6 {[%emt 0:07:56]} Kxd6 {[%emt 0:00:08]} 23. exd5 {[%emt 0:00:11]} cxd5 {[%emt 0:00:28]} 24. Rfa1 {[%emt 0:00:46]} Kc6 {[%emt 0:01:30]} 25. Bxa6 {[%emt 0:01:26]} Bxa6 {[%emt 0:00:08]} 26. Rxa6+ {[%emt 0:02:51]} Rxa6 {[%emt 0:00:16]} 27. Rxa6+ {[%emt 0:00:07]} Kb5 {[%emt 0:00:04]} 28. Ra5+ {[%emt 0:00:44]} Kc4 {[%emt 0:01:40]} 29. Rc5+ {[%emt 0:01:34]} Kb3 {[%emt 0:00:05]} 30. Rxd5 {[%emt 0:00:15]} Kxb2 {[%emt 0:00:11]} 31. Rc5 {[%emt 0:00:09]} Rd8 {[%emt 0:00:56]} 32. b5 {[%emt 0:02:54]} h4 {[%emt 0:00:21]} 33. b6 {[%emt 0:06:26]} Kc2 {[%emt 0:00:08]} 34. c4 {[%emt 0:12:07]} Kc3 {[%emt 0:01:24]} 35. b7 {[%emt 0:01:01]} Rb8 {[%emt 0:01:31]} 36. Rc7 {[%emt 0:01:09]} f5 {[%emt 0:02:51]} 37. c5 {[%emt 0:02:59]} e4 {[%emt 0:02:16]} 38. c6 {[%emt 0:01:59]} e3 {[%emt 0:00:05]} 39. Kf1 {[%emt 0:00:27]} f4 {[%emt 0:01:10]} 40. Ke2 {[%emt 0:00:42]} Rd8 {[%emt 0:00:32]} 41. Rd7 {[%emt 0:15:09]} h3 {[%emt 0:16:35]} 42. Rxd8 {[%emt 0:01:03]} hxg2 {[%emt 0:00:09]} 43. Rd1 {[%emt 0:00:07]} 1-0

[Event "GER-ch Youth-U14 2022"]
[Site "Willingen"]
[Date "2022.06.09"]
[Round "7.18"]
[White "Goepfert, Gregor"]
[Black "Linnemann, Caspar"]
[Result "1-0"]
[ECO "B50"]
[WhiteElo "1446"]
[BlackElo "1720"]
[Annotator "NA RC COMBH"]
[PlyCount "95"]
[EventDate "2022.06.05"]
[EventType "swiss"]
[EventRounds "9"]
[EventCountry "GER"]
[SourceTitle "playchess.com"]
[Source "ChessBase"]
[SourceQuality "1"]
[TimeControl "40/4500+30:900+30"]

1. e4 {[%emt 0:00:00]} c5 {[%emt 0:00:00]} 2. Nf3 {[%emt 0:00:00]} d6 {[%emt 0:00:00]} 3. c4 {[%emt 0:00:00]} Nf6 {[%emt 0:00:00]} 4. Nc3 {[%emt 0:00:00]} Nc6 {[%emt 0:00:00]} 5. d4 {[%emt 0:00:00]} cxd4 {[%emt 0:00:00]} 6. Nxd4 {[%emt 0:00:00]} Bd7 {[%emt 0:00:00]} 7. Be2 {[%emt 0:00:00]} a6 {[%emt 0:00:00]} 8. Be3 {[%emt 0:00:00]} e6 {[%emt 0:00:00]} 9. O-O {[%emt 0:00:00]} Be7 {[%emt 0:00:00]} 10. Rc1 {[%emt 0:00:00]} O-O {[%emt 0:00:00]} 11. Qd2 {[%emt 0:00:00]} Rc8 {[%emt 0:05:05]} 12. f4 {[%emt 0:00:00]} Nxd4 {[%emt 0:10:54]} 13. Bxd4 {[%emt 0:00:13]} Bc6 {[%emt 0:03:17]} 14. Bf3 {[%emt 0:01:40]} e5 {[%emt 0:08:37]} 15. Be3 {[%emt 0:04:03]} Nd7 {[%emt 0:10:11]} 16. Nd5 {[%emt 0:09:34]} Bxd5 {[%emt 0:02:51]} 17. cxd5 {[%emt 0:02:06]} b5 {[%emt 0:06:05]} 18. Rxc8 {[%emt 0:02:40]} Qxc8 {[%emt 0:00:23]} 19. Rc1 {[%emt 0:00:08]} Qb7 {[%emt 0:06:15]} 20. Rc6 {[%emt 0:03:08]} Nb8 {[%emt 0:06:49]} 21. Rc2 {[%emt 0:02:51]} f6 {[%emt 0:05:11]} 22. Bg4 {[%emt 0:02:41]} Bd8 {[%emt 0:05:13]} 23. Be6+ {[%emt 0:01:37]} Kh8 {[%emt 0:00:13]} 24. Qf2 {[%emt 0:07:44]} Re8 {[%emt 0:06:43]} 25. Bc8 {[%emt 0:05:43]} Qe7 {[%emt 0:00:49]} 26. f5 {[%emt 0:01:27]} Bc7 {[%emt 0:01:04]} 27. Be6 {[%emt 0:00:59]} Qd8 {[%emt 0:01:44]} 28. Kh1 Nd7 {[%emt 0:01:24]} 29. Rc6 {[%emt 0:08:07]} Nb8 {[%emt 0:00:10]} 30. Rc3 {[%emt 0:01:17]} Ba5 {[%emt 0:02:02]} 31. Rc1 {[%emt 0:02:05]} Bc7 {[%emt 0:00:29]} 32. b4 {[%emt 0:00:36]} h6 {[%emt 0:01:11]} 33. Rc3 {[%emt 0:01:24]} Nd7 {[%emt 0:03:27]} 34. Qh4 {[%emt 0:00:54]} Re7 {[%emt 0:00:54]} 35. g4 {[%emt 0:06:05]} Bb8 {[%emt 0:01:24]} 36. g5 {[%emt 0:00:53]} Qf8 {[%emt 0:00:27]} 37. gxh6 {[%emt 0:01:15]} gxh6 {[%emt 0:00:12]} 38. Bxh6 {[%emt 0:01:26]} Rh7 {[%emt 0:00:28]} 39. Bxf8 {[%emt 0:00:32]} Rxh4 {[%emt 0:00:09]} 40. Bxd7 {[%emt 0:00:33]} Rxe4 {[%emt 0:00:19]} 41. Be7 {[%emt 0:20:24]} Kg7 {[%emt 0:16:26]} 42. Be8 {[%emt 0:01:12]} Rxb4 {[%emt 0:00:00]} 43. Rg3+ {[%emt 0:00:00]} Kh6 {[%emt 0:00:00]} 44. Bf8+ {[%emt 0:00:00]} Kh7 {[%emt 0:00:00]} 45. Bf7 {[%emt 0:00:00]} Rh4 {[%emt 0:00:00]} 46. Bg8+ {[%emt 0:00:00]} Kh8 {[%emt 0:00:00]} 47. Bg7+ {[%emt 0:00:00]} Kxg8 {[%emt 0:00:00]} 48. Bxf6+ {[%emt 0:00:00]} 1-0

[Event "GER-ch Youth-U14 2022"]
[Site "Willingen"]
[Date "2022.06.09"]
[Round "7.19"]
[White "Detjen, Mattes"]
[Black "Vihan, Shourya"]
[Result "0-1"]
[ECO "B22"]
[WhiteElo "1098"]
[BlackElo "1385"]
[Annotator "NA RC COMBH"]
[PlyCount "48"]
[EventDate "2022.06.05"]
[EventType "swiss"]
[EventRounds "9"]
[EventCountry "GER"]
[SourceTitle "playchess.com"]
[Source "ChessBase"]
[SourceQuality "1"]
[TimeControl "40/4500+30:900+30"]

1. e4 {[%emt 0:00:00]} c5 {[%emt 0:00:00]} 2. c3 {[%emt 0:00:00]} d5 {[%emt 0:00:00]} 3. exd5 {[%emt 0:00:00]} Qxd5 {[%emt 0:00:00]} 4. d4 {[%emt 0:00:00]} Nf6 {[%emt 0:00:00]} 5. Nf3 {[%emt 0:00:00]} Bg4 {[%emt 0:00:00]} 6. Be2 {[%emt 0:00:00]} e6 {[%emt 0:00:00]} 7. O-O {[%emt 0:00:00]} Nc6 {[%emt 0:00:00]} 8. Bf4 {[%emt 0:00:00]} Be7 {[%emt 0:00:00]} 9. c4 {[%emt 0:00:00]} Qe4 {[%emt 0:03:32]} 10. Be3 {[%emt 0:02:28]} cxd4 {[%emt 0:08:53]} 11. Bd3 {[%emt 0:01:02]} Bxf3 {[%emt 0:01:12]} 12. gxf3 {[%emt 0:07:35]} Qe5 {[%emt 0:03:32]} 13. Bd2 {[%emt 0:08:47]} Qc7 {[%emt 0:05:11]} 14. Re1 {[%emt 0:05:58]} Bd6 {[%emt 0:03:59]} 15. h3 {[%emt 0:03:15]} O-O {[%emt 0:04:52]} 16. Kh1 {[%emt 0:01:43]} Ne5 {[%emt 0:03:09]} 17. Qe2 {[%emt 0:07:10]} Qc6 {[%emt 0:05:00]} 18. Kg2 {[%emt 0:03:16]} Nfd7 {[%emt 0:09:14]} 19. b3 {[%emt 0:06:43]} Nc5 {[%emt 0:03:47]} 20. Be4 {[%emt 0:01:46]} Nxe4 {[%emt 0:03:38]} 21. fxe4 {[%emt 0:04:26]} Ng6 {[%emt 0:02:58]} 22. Bg5 {[%emt 0:03:42]} Bf4 {[%emt 0:05:19]} 23. h4 {[%emt 0:04:22]} Bxg5 {[%emt 0:00:08]} 24. hxg5 {[%emt 0:00:04]} Nf4+ {[%emt 0:00:05]} 0-1

[Event "GER-ch Youth-U14 2022"]
[Site "Willingen"]
[Date "2022.06.09"]
[Round "7.20"]
[White "Shapiro, Danil"]
[Black "Sinka, Silas"]
[Result "1-0"]
[ECO "C01"]
[WhiteElo "1468"]
[BlackElo "1386"]
[Annotator "NA RC COMBH"]
[PlyCount "69"]
[EventDate "2022.06.05"]
[EventType "swiss"]
[EventRounds "9"]
[EventCountry "GER"]
[SourceTitle "playchess.com"]
[Source "ChessBase"]
[SourceQuality "1"]
[TimeControl "40/4500+30:900+30"]

1. e4 {[%emt 0:00:00]} e6 {[%emt 0:00:00]} 2. d4 {[%emt 0:00:00]} d5 {[%emt 0:00:00]} 3. exd5 {[%emt 0:00:00]} exd5 {[%emt 0:00:00]} 4. Nf3 {[%emt 0:00:00]} Bd6 {[%emt 0:00:00]} 5. c4 {[%emt 0:00:00]} dxc4 {[%emt 0:00:00]} 6. Bxc4 {[%emt 0:00:00]} Nf6 {[%emt 0:00:00]} 7. Qe2+ {[%emt 0:00:00]} Qe7 {[%emt 0:00:00]} 8. Qxe7+ {[%emt 0:00:00]} Bxe7 {[%emt 0:00:00]} 9. O-O {[%emt 0:00:00]} O-O {[%emt 0:00:00]} 10. Re1 {[%emt 0:00:00]} Bd6 {[%emt 0:00:00]} 11. Nc3 {[%emt 0:00:00]} a6 {[%emt 0:00:00]} 12. Bg5 {[%emt 0:00:00]} Nbd7 {[%emt 0:00:00]} 13. Ne5 {[%emt 0:00:00]} b5 {[%emt 0:13:43]} 14. Bb3 {[%emt 0:00:00]} Bb7 {[%emt 0:01:11]} 15. Nxd7 {[%emt 0:00:00]} Nxd7 {[%emt 0:00:12]} 16. Be7 {[%emt 0:00:00]} Rfe8 {[%emt 0:02:18]} 17. Bxd6 {[%emt 0:00:00]} cxd6 {[%emt 0:00:13]} 18. Bd5 {[%emt 0:00:00]} Bxd5 {[%emt 0:03:38]} 19. Nxd5 {[%emt 0:00:00]} Nf6 {[%emt 0:00:30]} 20. Nxf6+ {[%emt 0:08:28]} gxf6 {[%emt 0:00:11]} 21. f3 {[%emt 0:00:13]} Rac8 {[%emt 0:00:25]} 22. Rxe8+ {[%emt 0:00:25]} Rxe8 {[%emt 0:00:06]} 23. Kf2 {[%emt 0:00:07]} Rc8 {[%emt 0:00:06]} 24. Re1 {[%emt 0:00:15]} Kf8 {[%emt 0:01:02]} 25. Re2 {[%emt 0:01:17]} f5 {[%emt 0:02:46]} 26. b3 {[%emt 0:03:33]} Rc3 {[%emt 0:01:16]} 27. Ke1 {[%emt 0:05:58]} Rd3 {[%emt 0:02:52]} 28. Rd2 {[%emt 0:00:04]} Rxd2 {[%emt 0:00:14]} 29. Kxd2 {[%emt 0:00:12]} Ke7 {[%emt 0:00:05]} 30. d5 {[%emt 0:00:48]} Kf6 {[%emt 0:00:50]} 31. f4 {[%emt 0:00:09]} Kg6 {[%emt 0:01:27]} 32. h3 {[%emt 0:00:35]} Kh5 {[%emt 0:00:22]} 33. g3 {[%emt 0:00:06]} Kg6 {[%emt 0:00:04]} 34. Kc3 {[%emt 0:00:11]} h5 {[%emt 0:00:04]} 35. h4 1-0